fUST/lending_fUST_20240816
["ID","MTS","AMOUNT","RATE_DAILY","PERIOD"]
[335065144,1723801849384,-501.16453182,0.00043835,120]
[335065145,1723801849398,-500.0,0.00043835,120]
[335065146,1723801849411,-503.71145451,0.00043835,120]
[335065147,1723801849425,-500.0,0.00043835,120]
[335065148,1723801849437,-571.16399143,0.00043835,120]
[335065149,1723801849450,-500.0,0.00043835,120]
[335065150,1723801849464,-1250.4,0.00043835,120]
[335065151,1723801849477,-500.0,0.00043835,120]
[335065152,1723801849489,-503.25308765,0.00043835,120]
[335065153,1723801849503,-505.09846648,0.00043835,120]
[335065154,1723801849515,-500.0,0.00043835,120]
[335065155,1723801849528,-503.41736923,0.00043835,120]
[335065156,1723801849541,-992.54,0.00043835,120]
[335065157,1723801849555,-500.0,0.00043835,120]
[335065158,1723801849567,-502.05451986,0.00043835,120]
[335065159,1723801849580,-500.0,0.00043835,120]
[335065160,1723801849593,-500.63865486,0.00043835,120]
[335065161,1723801849606,-503.73695401,0.00043835,120]
[335065162,1723801849619,-505.92772371,0.00043835,120]
[335065163,1723801849632,-500.0,0.00043835,120]
[335065164,1723801849645,-500.0,0.00043835,120]
[335065165,1723801849657,-727.4,0.00043835,120]
[335065166,1723801849670,-500.0,0.00043835,120]
[335065167,1723801849684,-504.32435305,0.00043835,120]
[335065168,1723801849694,-500.0,0.00043835,120]
[335065169,1723801849704,-544.48,0.00043835,120]
[335065170,1723801849715,-326.403896,0.00043835,120]
[335065171,1723801849727,-326.403896,0.00043835,120]
[335065172,1723801849739,-326.403896,0.00043835,120]
[335065173,1723801849751,-500.0,0.00043835,120]
[335065174,1723801849761,-326.403896,0.00043835,120]
[335065175,1723801849772,-502.38662041,0.00043835,120]
[335065176,1723801849782,-500.0,0.00043835,120]
[335065177,1723801849792,-326.403897,0.00043835,120]
[335065178,1723801849802,-512.90533659,0.00043835,120]
[335065179,1723801849814,-500.0,0.00043835,120]
[335065180,1723801849825,-500.0,0.00043835,120]
[335065181,1723801849835,-520.03117846,0.00043835,120]
[335065182,1723801849845,-505.56308989,0.00043835,120]
[335065183,1723801849854,-500.0,0.00043835,120]
[335065184,1723801849863,-2552.14,0.00043835,120]
[335065185,1723801849873,-712.15,0.00043835,120]
[335065186,1723801849882,-500.0,0.00043835,120]
[335065187,1723801849892,-1000.35,0.00043835,120]
[335065188,1723801849903,-501.55243269,0.00043835,120]
[335065189,1723801849913,-1149.4,0.00043835,120]
[335065190,1723801849922,-501.72380771,0.00043835,120]
[335065191,1723801849932,-500.0,0.00043835,120]
[335065192,1723801850151,-500.0,0.00043835,120]
[335065193,1723801850170,-500.0,0.00043835,120]
[335065194,1723801850184,-503.29993579,0.00043835,120]
[335065195,1723801850194,-985.13,0.00043835,120]
[335065196,1723801850204,-550.55,0.00043835,120]
[335065197,1723801850214,-500.0,0.00043835,2]
[335065198,1723801850223,-500.0,0.00043835,120]
[335065199,1723801850233,-500.0,0.00043835,120]
[335065200,1723801850243,-770.71,0.00043835,120]
[335065201,1723801850252,-501.34096139,0.00043835,120]
[335065202,1723801850262,-503.48063626,0.00043835,120]
[335065203,1723801850272,-500.0,0.00043835,120]
[335065204,1723801850281,-500.0,0.00043835,120]
[335065205,1723801850291,-678.65,0.00043835,120]
[335065206,1723801850300,-500.0,0.00043835,120]
[335065207,1723801850310,-501.36810061,0.00043835,120]
[335065208,1723801850320,-688.86,0.00043835,120]
[335065209,1723801850329,-500.0,0.00043835,120]
[335065210,1723801850339,-500.94891711,0.00043835,120]
[335065211,1723801850348,-500.67266995,0.00043835,120]
[335065212,1723801850358,-500.0,0.00043835,120]
[335065213,1723801850367,-502.46852515,0.00043835,120]
[335065214,1723801850377,-500.0,0.00043835,120]
[335065215,1723801850387,-498.69906487,0.00043835,120]
[335065216,1723801850397,-6159.29,0.00043835,120]
[335065217,1723801850407,-500.0,0.00043835,120]
[335065218,1723801850415,-500.64190991,0.00043835,120]
[335065219,1723801850425,-500.0,0.00043835,120]
[335065220,1723801850435,-500.0,0.00043835,120]
[335065221,1723801850445,-500.0,0.00043835,120]
[335065222,1723801850455,-500.0,0.00043835,120]
[335065223,1723801850465,-500.0,0.00043835,20]
[335065224,1723801850475,-580.9,0.00043835,120]
[335065225,1723801850484,-500.0,0.00043835,120]
[335065226,1723801850494,-505.968824,0.00043835,120]
[335065227,1723801850504,-392.24928622,0.00043835,120]
[335065228,1723801850513,-505.968824,0.00043835,120]
[335065229,1723801850523,-500.0,0.00043835,120]
[335065230,1723801850533,-505.968824,0.00043835,120]
[335065231,1723801850543,-505.968824,0.00043835,120]
[335065232,1723801850552,-501.11562221,0.00043835,120]
[335065233,1723801850562,-505.968824,0.00043835,120]
[335065234,1723801850573,-500.0,0.00043835,120]
[335065235,1723801850583,-505.968824,0.00043835,120]
[335065236,1723801850592,-481.0736038,0.00043835,120]
[335065237,1723801850602,-500.0,0.00043835,120]
[335065238,1723801850611,-505.968824,0.00043835,120]
[335065239,1723801850621,-385.357446,0.00043835,120]
[335065240,1723801850631,-505.968824,0.00043835,120]
[335065241,1723801850640,-385.357446,0.00043835,120]
[335065242,1723801850650,-505.968824,0.00043835,120]
[335065243,1723801850660,-385.357446,0.00043835,120]
[335065244,1723801850670,-505.968824,0.00043835,120]
[335065245,1723801850680,-500.0,0.00043835,120]
[335065246,1723801850689,-385.357446,0.00043835,120]
[335065247,1723801850699,-505.968824,0.00043835,120]
[335065248,1723801850709,-385.357446,0.00043835,120]
[335065249,1723801850719,-500.0,0.00043835,120]
[335065250,1723801850732,-505.968828,0.00043835,120]
[335065251,1723801850742,-385.357446,0.00043835,120]
[335065252,1723801850751,-502.37598026,0.00043835,120]
[335065253,1723801850760,-500.0,0.00043835,120]
[335065254,1723801850770,-385.357446,0.00043835,120]
[335065255,1723801850780,-385.357446,0.00043835,120]
[335065256,1723801850790,-385.357446,0.00043835,120]
[335065257,1723801850800,-385.357446,0.00043835,120]
[335065258,1723801850812,-385.357446,0.00043835,120]
[335065259,1723801850823,-500.0,0.00043835,120]
[335065260,1723801850832,-385.35744,0.00043835,120]
[335065261,1723801850842,-500.0,0.00043835,120]
[335065262,1723801850851,-1208.53,0.00043835,120]
[335065263,1723801850861,-501.05166723,0.00043835,120]
[335065264,1723801850870,-500.0,0.00043835,120]
[335065265,1723801850880,-500.0,0.00043835,120]
[335065266,1723801850890,-503.58297841,0.00043835,120]
[335065267,1723801850900,-953.58,0.00043835,120]
[335065268,1723801850910,-500.0,0.00043835,120]
[335065269,1723801850921,-1956.56,0.00043835,21]
[335065270,1723801850931,-500.0,0.00043835,120]
[335065271,1723801850940,-501.9816756,0.00043835,120]
[335065272,1723801850951,-500.0,0.00043835,60]
[335065273,1723801850961,-500.0,0.00043835,120]
[335065274,1723801850971,-503.43468919,0.00043835,120]
[335065275,1723801850980,-500.0,0.00043835,120]
[335065276,1723801850989,-500.0,0.00043835,7]
[335065277,1723801850999,-502.68452407,0.00043835,120]
[335065278,1723801851009,-500.0,0.00043835,120]
[335065279,1723801851019,-500.0,0.00043835,120]
[335065280,1723801851028,-500.0,0.00043835,120]
[335065281,1723801851038,-500.0,0.00043835,120]
[335065282,1723801851048,-500.0,0.00043835,120]
[335065283,1723801851058,-500.0,0.00043835,120]
[335065284,1723801851067,-500.0,0.00043835,120]
[335065285,1723801851078,-500.0,0.00043835,120]
[335065286,1723801851088,-503.53640683,0.00043835,120]
[335065287,1723801851099,-500.0,0.00043835,120]
[335065288,1723801851109,-300.901532,0.00043835,120]
[335065289,1723801851118,-500.0,0.00043835,120]
[335065290,1723801851129,-500.0,0.00043835,120]
[335065291,1723801851139,-503.37499466,0.00043835,120]
[335065292,1723801851149,-500.0,0.00043835,120]
[335065293,1723801851160,-500.0,0.00043835,120]
[335065294,1723801851169,-1005.77,0.00043835,120]
[335065295,1723801851178,-501.70179759,0.00043835,120]
[335065296,1723801851188,-500.0,0.00043835,120]
[335065297,1723801851199,-504.53012463,0.00043835,120]
[335065298,1723801851208,-500.0,0.00043835,120]
[335065299,1723801851220,-502.03933976,0.00043835,120]
[335065300,1723801851230,-501.00918916,0.00043835,120]
[335065301,1723801851240,-179.48176156,0.00043835,120]
[335065302,1723801851251,-500.0,0.00043835,120]
[335065303,1723801851260,-56.43655906,0.00043835,120]
[335065304,1723801851808,-9656.22406339,0.00012516,2]
[335065305,1723801851819,-154.79103211,0.00012971,2]
[335065306,1723801851829,-413.48972324,0.00012985,2]
[335065307,1723801851839,-173.40696669,0.00013051,2]
[335065308,1723801851849,-952.97302419,0.00024658,2]
[335065309,1723801851859,-1110.39279741,0.00024688,2]
[335065310,1723801851869,-2357.68344094,0.00043835,120]
[335065311,1723801851879,-501.84701913,0.00043835,120]
[335065312,1723801851888,-638.12,0.00043835,120]
[335065313,1723801851898,-500.0,0.00043835,120]
[335065314,1723801851909,-200.0,0.00043835,7]
[335065315,1723801851919,-1956.86,0.00043835,120]
[335065316,1723801851929,-531.90382572,0.00043835,120]
[335065317,1723801851939,-1629.4,0.00043835,120]
[335065318,1723801851950,-502.35658444,0.00043835,120]
[335065319,1723801851961,-626.02,0.00043835,120]
[335065320,1723801851971,-500.0,0.00043835,120]
[335065321,1723801851981,-550.7,0.00043835,120]
[335065322,1723801851993,-502.16024492,0.00043835,120]
[335065323,1723801852003,-377.94471101,0.00043835,120]
[335065324,1723801852014,-500.0,0.00043835,120]
[335065325,1723801852024,-502.47903751,0.00043835,120]
[335065326,1723801852036,-549.19438683,0.00043835,120]
[335065327,1723801852047,-784.25,0.00043835,120]
[335065328,1723801852058,-503.06961753,0.00043835,120]
[335065329,1723801852068,-500.0,0.00043835,120]
[335065330,1723801852080,-501.6512095,0.00043835,120]
[335065331,1723801852089,-745.41,0.00043835,120]
[335065332,1723801852099,-501.06615813,0.00043835,120]
[335065333,1723801852109,-3133.5,0.00043835,120]
[335065334,1723801852120,-619.27,0.00043835,120]
[335065335,1723801852129,-837.99,0.00043835,120]
[335065336,1723801852140,-651.73,0.00043835,120]
[335065337,1723801852151,-2040.49,0.00043835,120]
[335065338,1723801852162,-500.88766145,0.00043835,120]
[335065339,1723801852171,-876.0,0.00043835,120]
[335065340,1723801852180,-1249.03,0.00043835,120]
[335065341,1723801852189,-1249.03,0.00043835,120]
[335065342,1723801852200,-1249.03,0.00043835,120]
[335065343,1723801852211,-563.60518639,0.00043835,120]
[335065344,1723801852221,-500.0,0.00043835,30]
[335065345,1723801852232,-1249.03,0.00043835,120]
[335065346,1723801852242,-1249.03,0.00043835,120]
[335065347,1723801852252,-1249.03,0.00043835,120]
[335065348,1723801852263,-1249.03,0.00043835,120]
[335065349,1723801852273,-1249.03,0.00043835,120]
[335065350,1723801852284,-1249.03,0.00043835,120]
[335065351,1723801852294,-500.0,0.00043835,120]
[335065352,1723801852306,-1249.03,0.00043835,120]
[335065353,1723801852318,-1249.03,0.00043835,120]
[335065354,1723801852328,-1249.03,0.00043835,120]
[335065355,1723801852340,-1249.03,0.00043835,120]
[335065356,1723801852351,-1249.03,0.00043835,120]
[335065357,1723801852361,-151.0,0.00043835,120]
[335065358,1723801852371,-1249.03,0.00043835,120]
[335065359,1723801852381,-151.0,0.00043835,120]
[335065360,1723801852391,-1249.03,0.00043835,120]
[335065361,1723801852401,-151.0,0.00043835,120]
[335065362,1723801852410,-1249.03,0.00043835,120]
[335065363,1723801852420,-151.0,0.00043835,120]
[335065364,1723801852430,-1249.03,0.00043835,120]
[335065365,1723801852439,-1249.03,0.00043835,120]
[335065366,1723801852449,-1249.03,0.00043835,120]
[335065367,1723801852458,-151.0,0.00043835,120]
[335065368,1723801852467,-1249.03,0.00043835,120]
[335065369,1723801852477,-151.0,0.00043835,120]
[335065370,1723801852486,-1249.03,0.00043835,120]
[335065371,1723801852496,-1249.03,0.00043835,120]
[335065372,1723801852505,-1249.16844195,0.00043835,120]
[335065373,1723801852515,-981.61,0.00043835,120]
[335065374,1723801852525,-500.0,0.00043835,120]
[335065375,1723801852534,-283.98450918,0.00043835,120]
[335065376,1723801853097,-216.01549082,0.00043835,120]
[335065377,1723801853107,-500.0,0.00043835,120]
[335065378,1723801853116,-512.38599675,0.00043835,120]
[335065379,1723801853127,-500.0,0.00043835,120]
[335065380,1723801853136,-502.60062585,0.00043835,120]
[335065381,1723801853147,-1217.22,0.00043835,120]
[335065382,1723801853157,-501.38324798,0.00043835,120]
[335065383,1723801853166,-185.87554903,0.00043835,120]
[335065384,1723801853175,-500.84370357,0.00043835,120]
[335065385,1723801853185,-500.0,0.00043835,120]
[335065386,1723801853195,-500.0,0.00043835,120]
[335065387,1723801853204,-587.5,0.00043835,120]
[335065388,1723801853214,-503.80439359,0.00043835,120]
[335065389,1723801853227,-500.0,0.00043835,120]
[335065390,1723801853237,-500.0,0.00043835,120]
[335065391,1723801853247,-816.6,0.00043835,120]
[335065392,1723801853257,-500.0,0.00043835,120]
[335065393,1723801853267,-500.0,0.00043835,120]
[335065394,1723801853276,-500.0,0.00043835,120]
[335065395,1723801853286,-500.0,0.00043835,120]
[335065396,1723801853295,-500.0,0.00043835,120]
[335065397,1723801853305,-500.0,0.00043835,120]
[335065398,1723801853314,-500.0,0.00043835,120]
[335065399,1723801853326,-500.0,0.00043835,120]
[335065400,1723801853337,-500.0,0.00043835,120]
[335065401,1723801853346,-500.0,0.00043835,120]
[335065402,1723801853356,-500.0,0.00043835,120]
[335065403,1723801853365,-8.83197418,0.00043835,120]
[335065404,1723801853380,-491.16802582,0.00043835,120]
[335065405,1723801853389,-11.21166958,0.00043835,120]
[335065408,1723801991611,189.98027671,0.00027,120]
[335065436,1723802392526,42399.32737911,0.00010081,2]
[335065445,1723802845147,-678.17313687,0.00010578,2]
[335065450,1723802916308,273.37336231,9.9e-05,2]
[335065451,1723802933771,273.37336231,9.9e-05,2]
[335065457,1723802950245,222.42248532,9.9e-05,2]
[335065458,1723802958098,-241.79557891,0.00010578,2]
[335065459,1723802958120,-218.62299037,0.00010578,2]
[335065460,1723802958143,-2139.04468053,0.00010578,2]
[335065461,1723802958168,-898.36998352,0.00010739,2]
[335065462,1723802958190,-2150.71426597,0.00010739,2]
[335065463,1723802960113,-31094.18165727,0.00010739,2]
[335065464,1723802960136,-5380.66931469,0.00010739,2]
[335065465,1723802960163,-23948.44228112,0.00010739,2]
[335065466,1723802970096,-898.36998352,0.00010544,2]
[335065467,1723802970118,-26122.82890986,0.00010739,2]
[335065468,1723802970143,-300.0,0.00010956,2]
[335065469,1723802970165,-300.0,0.00010956,2]
[335065470,1723802970189,-837.38,0.00010959,2]
[335065471,1723802970211,-59.95740025,0.00011215,2]
[335065479,1723803031773,-115.40144175,0.00011215,2]
[335065480,1723803031787,-300.0,0.0001123,2]
[335065481,1723803031800,-300.0,0.0001123,2]
[335065482,1723803031817,-18750.43151166,0.00011231,2]
[335065483,1723803031841,-305.84891193,0.00011231,2]
[335065484,1723803031856,-5843.71957641,0.00011231,2]
[335065485,1723803031867,-175.358842,0.00011245,2]
[335065486,1723803031878,-175.358842,0.00011276,2]
[335065487,1723803031891,-175.358842,0.00011307,2]
[335065488,1723803031905,-175.358842,0.00011338,2]
[335065489,1723803031919,-175.358842,0.00011368,2]
[335065490,1723803031930,-175.358842,0.00011399,2]
[335065491,1723803031942,-1320.43058251,0.00011409,2]
[335065582,1723803037931,-413.41235077,0.00010739,2]
[335065583,1723803037941,-19464.24433264,0.00011409,2]
[335065584,1723803037951,-175.358842,0.0001143,2]
[335065585,1723803037960,-175.358842,0.00011461,2]
[335065586,1723803037971,-175.358842,0.00011491,2]
[335065587,1723803037981,-175.358842,0.00011522,2]
[335065588,1723803037991,-175.358842,0.00011553,2]
[335065589,1723803038000,-175.358842,0.00011584,2]
[335065591,1723803038009,-175.358842,0.00011615,2]
[335065593,1723803038018,-154.7968632,0.00011621,2]
[335065594,1723803038029,-255.10499635,0.00011621,2]
[335065596,1723803038039,-181.68348154,0.00011621,2]
[335065599,1723803038048,-269.21476476,0.00011621,2]
[335065600,1723803038058,-206.52794541,0.00011621,2]
[335065602,1723803038068,-176.06665181,0.00011621,2]
[335065604,1723803038078,-175.358842,0.00011645,2]
[335065605,1723803038087,-175.358842,0.00011676,2]
[335065606,1723803038098,-175.358842,0.00011707,2]
[335065607,1723803038111,-197.43956767,0.00011712,2]
[335065608,1723803038120,-308.13531118,0.00011712,2]
[335065609,1723803038131,-197.19992737,0.00011712,2]
[335065610,1723803038140,-8841.788252,0.00011712,2]
[335065611,1723803038151,-154.89891945,0.00011712,2]
[335065612,1723803038160,-180.73325647,0.00011731,2]
[335065613,1723803038170,-156.46495656,0.00011731,2]
[335065614,1723803038181,-180.73325647,0.00011731,2]
[335065615,1723803038191,-7011.29579993,0.00011731,2]
[335065616,1723803038200,-184.2285852,0.00011731,2]
[335065617,1723803038210,-175.358842,0.00011738,2]
[335065618,1723803038220,-175.358842,0.00011768,2]
[335065619,1723803038229,-175.358842,0.00011799,2]
[335065620,1723803038239,-256.15180176,0.00011894,2]
[335065621,1723803038249,-61732.9410827,0.000119,2]
[335065622,1723803038259,-154.79103211,0.00011987,2]
[335065623,1723803038268,-9656.22406339,0.00011999,2]
[335065624,1723803038278,-154.87806633,0.00011999,2]
[335065625,1723803038287,-305.12880689,0.00011999,2]
[335065626,1723803038296,-2111.51511942,0.00012,2]
[335065627,1723803038306,-2926.18841505,0.00012,2]
[335065628,1723803038316,-19752.68746364,0.00012,2]
[335065629,1723803038325,-4719.09219548,0.00012,2]
[335065630,1723803038334,-405.23584646,0.00012,2]
[335065631,1723803038344,-899.2851663,0.00012,2]
[335065632,1723803038354,-1718.91670259,0.0001212,2]
[335065633,1723803038363,-61732.9410827,0.00012153,2]
[335065634,1723803038372,-1612.67783737,0.00012163,2]
[335065635,1723803038382,-420.0,0.00012338,2]
[335065636,1723803038391,-420.0,0.00012353,2]
[335065637,1723803038400,-2142.17325985,0.00012356,2]
[335065638,1723803038410,-3091.61067347,0.00012516,2]
[335065639,1723803038419,-1765.95777024,0.00012516,2]
[335065640,1723803038429,-2165.54782924,0.00012779,2]
[335065641,1723803038439,-2711.75574306,0.00012782,2]
[335065642,1723803038448,-154.84863938,0.00012782,2]
[335065643,1723803038457,-809.95963071,0.00012782,2]
[335065644,1723803038467,-2127.39988805,0.00012898,2]
[335065645,1723803038476,-933.51163948,0.00012898,2]
[335065646,1723803038485,-811.12417981,0.00012898,2]
[335065647,1723803038495,-534.68598613,0.00012898,2]
[335065648,1723803038504,-300.42249537,0.00012898,2]
[335065649,1723803038514,-569.37734184,0.00012898,2]
[335065650,1723803038524,-1957.43349703,0.000129,2]
[335065651,1723803038534,-154.79103211,0.00012934,2]
[335065652,1723803038544,-154.79103211,0.00012934,2]
[335065653,1723803038554,-309.48933332,0.00012934,2]
[335065654,1723803038563,-205.47944102,0.00012934,2]
[335065655,1723803038573,-190.01321416,0.00012934,2]
[335065656,1723803038583,-157.04728598,0.00012934,2]
[335065657,1723803038592,-196.75132172,0.00012934,2]
[335065658,1723803038601,-404.31033644,0.00012934,2]
[335065659,1723803038611,-601.69102478,0.00012934,2]
[335065660,1723803038620,-283.17581602,0.00012934,2]
[335065661,1723803038630,-154.79103211,0.00012934,2]
[335065662,1723803038639,-728.43490027,0.00012934,2]
[335065663,1723803038649,-256.23174061,0.00012971,2]
[335065664,1723803038659,-422.17784127,0.00012971,2]
[335065665,1723803038668,-160.39523982,0.00012971,2]
[335065666,1723803038677,-543.83358768,0.00012985,2]
[335065667,1723803038688,-1500.0,0.00012985,2]
[335065668,1723803038697,-543.83358768,0.00012985,2]
[335065669,1723803038707,-520.42439304,0.00012985,2]
[335065670,1723803038717,-688.45853838,0.00012985,2]
[335065671,1723803038726,-154.79103211,0.00012985,2]
[335065672,1723803038736,-156.95829692,0.00012989,2]
[335065673,1723803038746,-154.84643009,0.00012989,2]
[335065674,1723803038756,-150.112234,0.00013,2]
[335065675,1723803038765,-188.4831986,0.00013025,2]
[335065676,1723803038778,-154.79103211,0.00013477,2]
[335065677,1723803038787,-154.79103211,0.00013496,2]
[335065678,1723803038797,-587.0,0.00013555,2]
[335065679,1723803038808,-587.0,0.00013588,2]
[335065680,1723803038818,-182.90208954,0.00013594,2]
[335065681,1723803038827,-850.51877308,0.00013594,2]
[335065682,1723803038837,-154.79103211,0.00013599,2]
[335065683,1723803038846,-61732.9410827,0.00013689,2]
[335065684,1723803038856,-301.4340064,0.00013697,2]
[335065685,1723803038866,-500.0,0.00013698,2]
[335065686,1723803038875,-500.0,0.00013698,2]
[335065687,1723803038884,-500.0,0.00013698,2]
[335065688,1723803038894,-397.43973646,0.00013698,2]
[335065689,1723803038904,-186.270078,0.00013699,2]
[335065690,1723803038914,-3000.0,0.00013699,2]
[335065691,1723803038923,-500.0,0.00013699,2]
[335065692,1723803038933,-500.0,0.00013699,2]
[335065693,1723803038942,-500.0,0.00013699,2]
[335065694,1723803038951,-500.0,0.00013699,2]
[335065695,1723803038962,-500.0,0.00013699,2]
[335065696,1723803038972,-500.0,0.00013699,2]
[335065697,1723803038981,-611.81155505,0.00013699,2]
[335065698,1723803038990,-500.0,0.00013699,2]
[335065699,1723803039000,-500.0,0.00013699,2]
[335065700,1723803039009,-500.0,0.00013699,2]
[335065701,1723803039020,-500.0,0.00013699,2]
[335065702,1723803039031,-500.0,0.00013699,2]
[335065703,1723803039040,-588.96018523,0.00013699,2]
[335065704,1723803039050,-500.0,0.00013699,2]
[335065705,1723803039059,-500.0,0.00013699,2]
[335065706,1723803039070,-500.0,0.00013699,2]
[335065707,1723803039080,-500.0,0.00013699,2]
[335065708,1723803039090,-500.0,0.00013699,2]
[335065709,1723803039104,-500.0,0.00013699,2]
[335065710,1723803039113,-500.0,0.00013699,2]
[335065711,1723803039123,-500.0,0.00013699,2]
[335065712,1723803039133,-500.0,0.00013699,2]
[335065713,1723803039143,-500.0,0.00013699,2]
[335065714,1723803039152,-500.0,0.00013699,2]
[335065715,1723803039162,-500.0,0.00013699,2]
[335065716,1723803039171,-500.0,0.00013699,2]
[335065717,1723803039182,-500.0,0.00013699,2]
[335065718,1723803039191,-500.0,0.00013699,2]
[335065719,1723803039201,-500.0,0.00013699,2]
[335065720,1723803039211,-154.84433196,0.00014,2]
[335065723,1723803039220,-162.830916,0.00014247,2]
[335065725,1723803039230,-176.642693,0.00014247,2]
[335065726,1723803039240,-305.0,0.00014892,2]
[335065727,1723803039249,-823.0,0.00014947,2]
[335065728,1723803039259,-199.38098027,0.00015,2]
[335065729,1723803039268,-154.88006811,0.00015,2]
[335065730,1723803039278,-782.12449386,0.00015,2]
[335065731,1723803039288,-155.00357971,0.00015,2]
[335065732,1723803039298,-500.0,0.00016438,2]
[335065733,1723803039307,-500.0,0.00016438,2]
[335065734,1723803039316,-500.0,0.00016438,2]
[335065735,1723803039326,-500.0,0.00016438,2]
[335065736,1723803039335,-500.0,0.00016438,2]
[335065737,1723803039344,-500.0,0.00016438,2]
[335065738,1723803039354,-500.0,0.00016438,2]
[335065739,1723803039364,-500.0,0.00016438,2]
[335065740,1723803039373,-500.0,0.00016438,2]
[335065741,1723803039382,-500.0,0.00016438,2]
[335065742,1723803039392,-500.0,0.00016438,2]
[335065743,1723803039401,-500.0,0.00016438,2]
[335065744,1723803039411,-500.0,0.00016438,2]
[335065745,1723803039420,-500.0,0.00016438,2]
[335065746,1723803039430,-575.0,0.00016438,2]
[335065747,1723803039439,-500.0,0.00016438,2]
[335065748,1723803039448,-500.0,0.00016438,2]
[335065749,1723803039457,-500.0,0.00016438,2]
[335065750,1723803039467,-500.0,0.00016438,2]
[335065751,1723803039476,-500.0,0.00016438,2]
[335065752,1723803039485,-500.0,0.00016438,2]
[335065753,1723803039494,-500.0,0.00016438,2]
[335065754,1723803039503,-500.0,0.00016438,2]
[335065755,1723803039513,-500.0,0.00016438,2]
[335065756,1723803039524,-500.0,0.00016438,2]
[335065757,1723803039533,-500.0,0.00016438,2]
[335065758,1723803039543,-500.0,0.00016438,2]
[335065759,1723803039552,-500.0,0.00016438,2]
[335065760,1723803039562,-500.0,0.00016438,2]
[335065761,1723803039571,-500.0,0.00016438,2]
[335065762,1723803039581,-500.0,0.00016438,2]
[335065763,1723803039590,-500.0,0.00016438,2]
[335065764,1723803039601,-500.0,0.00016438,2]
[335065765,1723803039611,-500.0,0.00016438,2]
[335065766,1723803039620,-500.0,0.00016438,2]
[335065767,1723803039630,-500.0,0.00016438,2]
[335065768,1723803039640,-500.0,0.00016438,2]
[335065769,1723803039649,-500.0,0.00016438,2]
[335065770,1723803039659,-500.0,0.00016438,2]
[335065772,1723803039668,-500.0,0.00016438,2]
[335065775,1723803039678,-500.0,0.00016438,2]
[335065776,1723803039688,-500.0,0.00016438,2]
[335065777,1723803039697,-500.0,0.00016438,2]
[335065778,1723803039707,-500.0,0.00016438,2]
[335065779,1723803039717,-500.0,0.00016438,2]
[335065781,1723803039727,-500.0,0.00016438,2]
[335065783,1723803039736,-500.0,0.00016438,2]
[335065785,1723803039746,-200.0,0.00016438,2]
[335065786,1723803039756,-1152.0,0.00016442,2]
[335065787,1723803039766,-277.52010074,0.000165,2]
[335065788,1723803039777,-1957.43349703,0.00017383,2]
[335065790,1723803039787,-61732.9410827,0.00018076,2]
[335065792,1723803039796,-1613.0,0.00018086,2]
[335065794,1723803039806,-205.8262069,0.00019178,2]
[335065796,1723803039816,-251.0,0.00019178,2]
[335065798,1723803039826,-2258.0,0.00019895,2]
[335065800,1723803039836,-156.55024698,0.0002,2]
[335065802,1723803039846,-186.270078,0.00020548,2]
[335065804,1723803039856,-196.0,0.00021884,2]
[335065806,1723803039866,-1957.43349703,0.00023436,2]
[335065808,1723803039876,-5242.47821719,0.00024613,2]
[335065810,1723803039886,-952.97302419,0.00024651,2]
[335065812,1723803039895,-1110.39279741,0.00024662,2]
[335065814,1723803039905,-154.79103211,0.00024688,2]
[335065816,1723803039915,-705.45595223,0.00024847,2]